[Event "GrandPrix_29.05"]
[Site "Chess.com"]
[Date "2020.05.29"]
[Round "1"]
[White "Kezin_Roman"]
[Black "SuperFineHipster"]
[Result "1-0"]
[WhiteElo "2553"]
[BlackElo "2105"]
[TimeControl "600+2"]
[EndTime "9:25:23 PDT"]
[Termination "Kezin_Roman won by resignation"]

1. d4 {[%clk 0:09:59.6]} 1... Nf6 {[%clk 0:09:54.3]} 2. c4 {[%clk 0:09:59.7]}
2... e6 {[%clk 0:09:41.7]} 3. g3 {[%clk 0:09:59.9]} 3... Bb4+ {[%clk 0:09:37.1]}
4. Bd2 {[%clk 0:09:59.7]} 4... Qe7 {[%clk 0:09:38.2]} 5. Nf3 {[%clk 0:09:57.7]}
5... Nc6 {[%clk 0:09:35.5]} 6. Nc3 {[%clk 0:09:58.1]} 6... O-O {[%clk
0:09:30.3]} 7. Bg2 {[%clk 0:09:56.3]} 7... d6 {[%clk 0:09:26.3]} 8. O-O {[%clk
0:09:55.7]} 8... Bxc3 {[%clk 0:09:20]} 9. Bxc3 {[%clk 0:09:56.1]} 9... Ne4
{[%clk 0:09:19.8]} 10. Rc1 {[%clk 0:09:53]} 10... e5 {[%clk 0:09:19.3]} 11. d5
{[%clk 0:09:09.4]} 11... Nxc3 {[%clk 0:09:09.4]} 12. Rxc3 {[%clk 0:09:09.4]}
12... Nb8 {[%clk 0:09:05]} 13. e4 {[%clk 0:08:46.2]} 13... a5 {[%clk 0:08:54.8]}
14. Nd2 {[%clk 0:08:18.3]} 14... g6 {[%clk 0:08:36]} 15. f4 {[%clk 0:08:17.4]}
15... Nd7 {[%clk 0:08:24.8]} 16. f5 {[%clk 0:07:55.1]} 16... f6 {[%clk
0:08:22.6]} 17. h4 {[%clk 0:07:41.9]} 17... Rf7 {[%clk 0:08:05.3]} 18. fxg6
{[%clk 0:07:28.1]} 18... hxg6 {[%clk 0:08:06]} 19. Bh3 {[%clk 0:07:29.5]} 19...
Nf8 {[%clk 0:07:21.1]} 20. Bxc8 {[%clk 0:07:28.5]} 20... Rxc8 {[%clk 0:07:23]}
21. Rcf3 {[%clk 0:06:44.2]} 21... Nd7 {[%clk 0:07:10.4]} 22. R3f2 {[%clk
0:05:00.6]} 22... Rg7 {[%clk 0:06:30.7]} 23. Kg2 {[%clk 0:03:38.4]} 23... Rf8
{[%clk 0:06:26.2]} 24. b3 {[%clk 0:02:37.2]} 24... c6 {[%clk 0:05:00.5]} 25. Qe2
{[%clk 0:02:24.8]} 25... Rff7 {[%clk 0:03:44.3]} 26. a3 {[%clk 0:01:34]} 26...
Qf8 {[%clk 0:03:25.6]} 27. Qd3 {[%clk 0:01:17.6]} 27... Nc5 {[%clk 0:03:07.2]}
28. Qc2 {[%clk 0:01:17]} 28... Qd8 {[%clk 0:02:53.1]} 29. b4 {[%clk 0:01:13.5]}
29... axb4 {[%clk 0:02:53.7]} 30. axb4 {[%clk 0:01:15.4]} 30... Nd7 {[%clk
0:02:50.3]} 31. Qd3 {[%clk 0:01:07.4]} 31... Qb6 {[%clk 0:02:45.4]} 32. Qc3
{[%clk 0:00:33.4]} 32... Qd8 {[%clk 0:02:21.5]} 33. Nb3 {[%clk 0:00:32]} 33...
f5 {[%clk 0:02:10.5]} 34. dxc6 {[%clk 0:00:19.2]} 34... bxc6 {[%clk 0:02:09.1]}
35. Qd3 {[%clk 0:00:20.5]} 35... Nf6 {[%clk 0:00:52.2]} 36. exf5 {[%clk
0:00:19.8]} 36... Ng4 {[%clk 0:00:40]} 37. Rf3 {[%clk 0:00:14.5]} 37... gxf5
{[%clk 0:00:26.3]} 38. Rxf5 {[%clk 0:00:16.4]} 38... Rxf5 {[%clk 0:00:21]} 39.
Rxf5 {[%clk 0:00:18.3]} 39... Qb6 {[%clk 0:00:22.6]} 40. Rf3 {[%clk 0:00:08.3]}
40... Qxb4 {[%clk 0:00:23]} 41. Qf5 {[%clk 0:00:07.3]} 41... Qb8 {[%clk
0:00:18.7]} 42. Nd2 {[%clk 0:00:06.2]} 42... Qe8 {[%clk 0:00:16]} 43. Ne4 {[%clk
0:00:06.8]} 43... d5 {[%clk 0:00:16]} 44. cxd5 {[%clk 0:00:06.1]} 44... cxd5
{[%clk 0:00:17.9]} 45. Ng5 {[%clk 0:00:07.3]} 45... Nh6 {[%clk 0:00:10.8]} 46.
Qf6 {[%clk 0:00:06.7]} 46... e4 {[%clk 0:00:09.5]} 47. Rb3 {[%clk 0:00:07.6]}
47... Ng4 {[%clk 0:00:09.7]} 48. Qf5 {[%clk 0:00:07.9]} 48... Nh6 {[%clk
0:00:07.3]} 49. Qxd5+ {[%clk 0:00:08.6]} 49... Kh8 {[%clk 0:00:06.8]} 50. Qxe4
{[%clk 0:00:06]} 50... Qxe4+ {[%clk 0:00:05.2]} 51. Nxe4 {[%clk 0:00:07.9]}
51... Nf5 {[%clk 0:00:06.5]} 52. Kh3 {[%clk 0:00:08.9]} 52... Kh7 {[%clk
0:00:06.3]} 53. g4 {[%clk 0:00:08.8]} 53... Nd4 {[%clk 0:00:06.9]} 54. Rb6
{[%clk 0:00:08.8]} 54... Nf3 {[%clk 0:00:07.1]} 55. Kg3 {[%clk 0:00:09]} 55...
Ne5 {[%clk 0:00:07.3]} 56. Ng5+ {[%clk 0:00:09.9]} 56... Kh8 {[%clk 0:00:08.9]}
57. Rb8+ {[%clk 0:00:10.4]} 57... Rg8 {[%clk 0:00:10.4]} 58. Rxg8+ {[%clk
0:00:11.1]} 58... Kxg8 {[%clk 0:00:12.3]} 59. h5 {[%clk 0:00:13]} 59... Kg7
{[%clk 0:00:13.4]} 60. Nf3 {[%clk 0:00:14.3]} 60... Nf7 {[%clk 0:00:12.9]} 61.
g5 {[%clk 0:00:15.2]} 61... Nd6 {[%clk 0:00:13.5]} 62. Kg4 {[%clk 0:00:16.7]}
62... Ne4 {[%clk 0:00:14.6]} 63. Kf4 {[%clk 0:00:16.2]} 63... Nc5 {[%clk
0:00:14.5]} 64. Nd4 {[%clk 0:00:16]} 64... Nd3+ {[%clk 0:00:15.5]} 65. Kf5
{[%clk 0:00:17.1]} 65... Nc5 {[%clk 0:00:17.1]} 66. Ne6+ {[%clk 0:00:17.3]} 1-0

[Event "GrandPrix_29.05"]
[Site "Chess.com"]
[Date "2020.05.29"]
[Round "1"]
[White "Azatic"]
[Black "Mesropov_Konstantin"]
[Result "1/2-1/2"]
[WhiteElo "2192"]
[BlackElo "1958"]
[TimeControl "600+2"]
[EndTime "9:25:28 PDT"]
[Termination "Game drawn - insufficient material"]

1. e4 {[%clk 0:09:59.2]} 1... e6 {[%clk 0:10:00]} 2. d4 {[%clk 0:09:58.9]} 2...
d5 {[%clk 0:10:00.8]} 3. e5 {[%clk 0:09:57.2]} 3... c5 {[%clk 0:10:00]} 4. c3
{[%clk 0:09:58.1]} 4... Qb6 {[%clk 0:09:52.8]} 5. Nf3 {[%clk 0:09:51.1]} 5...
Bd7 {[%clk 0:09:52.2]} 6. a3 {[%clk 0:09:51.1]} 6... Bb5 {[%clk 0:09:28.7]} 7.
c4 {[%clk 0:09:46.3]} 7... Bxc4 {[%clk 0:08:42.9]} 8. Bxc4 {[%clk 0:09:40.2]}
8... dxc4 {[%clk 0:08:43.9]} 9. d5 {[%clk 0:09:36.5]} 9... exd5 {[%clk
0:06:02.7]} 10. Qxd5 {[%clk 0:09:38.4]} 10... Be7 {[%clk 0:05:09.5]} 11. O-O
{[%clk 0:08:59.3]} 11... Nc6 {[%clk 0:04:49.7]} 12. Qxc4 {[%clk 0:08:27.6]}
12... Nd4 {[%clk 0:04:42.4]} 13. Nc3 {[%clk 0:06:21.9]} 13... Qb3 {[%clk
0:04:31.1]} 14. Qd3 {[%clk 0:05:51]} 14... Rd8 {[%clk 0:04:19.8]} 15. Qe4 {[%clk
0:05:23.9]} 15... f5 {[%clk 0:03:09.3]} 16. Qf4 {[%clk 0:04:05.7]} 16... Nh6
{[%clk 0:02:37.1]} 17. Kh1 {[%clk 0:02:56.9]} 17... O-O {[%clk 0:02:27.4]} 18.
Qg3 {[%clk 0:02:41.6]} 18... Qe6 {[%clk 0:02:22.5]} 19. Bxh6 {[%clk 0:02:34.4]}
19... Qxh6 {[%clk 0:02:21]} 20. Rad1 {[%clk 0:02:35.9]} 20... a6 {[%clk
0:01:44.8]} 21. Nxd4 {[%clk 0:02:22.3]} 21... Rxd4 {[%clk 0:01:43]} 22. Ne2
{[%clk 0:02:23.8]} 22... Rxd1 {[%clk 0:01:29]} 23. Qb3+ {[%clk 0:02:15.2]} 23...
Kh8 {[%clk 0:01:28.8]} 24. Rxd1 {[%clk 0:02:15.8]} 24... Qc6 {[%clk 0:01:25.4]}
25. Nf4 {[%clk 0:02:03.2]} 25... c4 {[%clk 0:01:18.4]} 26. Qc2 {[%clk
0:01:30.1]} 26... Bg5 {[%clk 0:01:16.1]} 27. Nd5 {[%clk 0:01:22.2]} 27... Rd8
{[%clk 0:01:14.9]} 28. Nc3 {[%clk 0:01:03.2]} 28... Rf8 {[%clk 0:01:08.2]} 29.
h3 {[%clk 0:00:59.7]} 29... Qe6 {[%clk 0:01:04.5]} 30. Qe2 {[%clk 0:00:58.8]}
30... b5 {[%clk 0:01:01]} 31. Rd6 {[%clk 0:00:58.6]} 31... Qe8 {[%clk
0:00:50.3]} 32. Nd5 {[%clk 0:00:55.7]} 32... h6 {[%clk 0:00:49.2]} 33. Nc7
{[%clk 0:00:46.5]} 33... Qe7 {[%clk 0:00:42]} 34. Ne6 {[%clk 0:00:46.5]} 34...
Re8 {[%clk 0:00:41.7]} 35. Qh5 {[%clk 0:00:35.4]} 35... Bc1 {[%clk 0:00:37.2]}
36. Qg6 {[%clk 0:00:16.8]} 36... c3 {[%clk 0:00:34.3]} 37. bxc3 {[%clk
0:00:13.8]} 37... Bxa3 {[%clk 0:00:33.6]} 38. Rxa6 {[%clk 0:00:14.5]} 38... b4
{[%clk 0:00:11.7]} 39. Nxg7 {[%clk 0:00:10.7]} 39... Rd8 {[%clk 0:00:08.5]} 40.
Qxh6+ {[%clk 0:00:11.2]} 40... Kg8 {[%clk 0:00:09.5]} 41. Rg6 {[%clk 0:00:06.1]}
41... Rd1+ {[%clk 0:00:09.7]} 42. Kh2 {[%clk 0:00:07.4]} 42... Qxe5+ {[%clk
0:00:10]} 43. f4 {[%clk 0:00:09]} 43... Qe1 {[%clk 0:00:04.2]} 44. Nh5+ {[%clk
0:00:09.1]} 44... Kf7 {[%clk 0:00:04.9]} 45. Qg7+ {[%clk 0:00:10.4]} 45... Ke8
{[%clk 0:00:05.9]} 46. Qg8+ {[%clk 0:00:08]} 46... Kd7 {[%clk 0:00:07]} 47. Rg7+
{[%clk 0:00:09.6]} 47... Kc6 {[%clk 0:00:08.3]} 48. Qc8+ {[%clk 0:00:10.7]}
48... Kb5 {[%clk 0:00:09.5]} 49. Rb7+ {[%clk 0:00:08.2]} 49... Ka4 {[%clk
0:00:10.5]} 50. Ra7+ {[%clk 0:00:06.3]} 50... Kb3 {[%clk 0:00:11.3]} 51. Qg8+
{[%clk 0:00:08.2]} 51... Kb2 {[%clk 0:00:11.6]} 52. cxb4 {[%clk 0:00:08.7]}
52... Qg1+ {[%clk 0:00:12.1]} 53. Kg3 {[%clk 0:00:10.2]} 53... Rd3+ {[%clk
0:00:12.3]} 54. Kh4 {[%clk 0:00:11]} 54... Qxa7 {[%clk 0:00:11.9]} 55. Qg7+
{[%clk 0:00:09.6]} 55... Qd4 {[%clk 0:00:11.4]} 56. Qxd4+ {[%clk 0:00:09.8]}
56... Rxd4 {[%clk 0:00:12.3]} 57. Kg5 {[%clk 0:00:11.5]} 57... Rd2 {[%clk
0:00:11.8]} 58. g4 {[%clk 0:00:12.4]} 58... fxg4 {[%clk 0:00:12.3]} 59. hxg4
{[%clk 0:00:14.3]} 59... Bxb4 {[%clk 0:00:13.4]} 60. f5 {[%clk 0:00:15.9]} 60...
Rf2 {[%clk 0:00:11]} 61. Kg6 {[%clk 0:00:16.4]} 61... Bc3 {[%clk 0:00:10.6]} 62.
g5 {[%clk 0:00:17.7]} 62... Bd2 {[%clk 0:00:10.9]} 63. Ng3 {[%clk 0:00:12.4]}
63... Bxg5 {[%clk 0:00:08.2]} 64. Kxg5 {[%clk 0:00:13.2]} 64... Rxf5+ {[%clk
0:00:09.5]} 65. Nxf5 {[%clk 0:00:15.1]} 1/2-1/2

[Event "GrandPrix_29.05"]
[Site "Chess.com"]
[Date "2020.05.29"]
[Round "1"]
[White "Iljin_Timofey"]
[Black "Alexander_Moskalenko"]
[Result "0-1"]
[WhiteElo "2285"]
[BlackElo "2106"]
[TimeControl "600+2"]
[EndTime "9:25:31 PDT"]
[Termination "Alexander_Moskalenko won by checkmate"]

1. d4 {[%clk 0:09:58.9]} 1... e6 {[%clk 0:09:59]} 2. c4 {[%clk 0:09:59.1]} 2...
f5 {[%clk 0:09:57.9]} 3. Nc3 {[%clk 0:09:59.7]} 3... Bb4 {[%clk 0:09:56.6]} 4.
Bd2 {[%clk 0:09:56.2]} 4... Nf6 {[%clk 0:09:56.7]} 5. g3 {[%clk 0:09:53.2]} 5...
Nc6 {[%clk 0:09:53]} 6. Nf3 {[%clk 0:09:38.8]} 6... O-O {[%clk 0:09:41.2]} 7.
Bg2 {[%clk 0:09:37.4]} 7... Bxc3 {[%clk 0:09:38.9]} 8. Bxc3 {[%clk 0:09:36.7]}
8... Ne4 {[%clk 0:09:40.8]} 9. Rc1 {[%clk 0:09:37.5]} 9... d6 {[%clk 0:09:31.9]}
10. O-O {[%clk 0:09:37.3]} 10... e5 {[%clk 0:09:31.2]} 11. Be1 {[%clk
0:08:54.9]} 11... a5 {[%clk 0:09:22.3]} 12. e3 {[%clk 0:08:19]} 12... Qe8 {[%clk
0:09:17.9]} 13. Nd2 {[%clk 0:07:21.4]} 13... Nxd2 {[%clk 0:09:11.5]} 14. Qxd2
{[%clk 0:07:23.3]} 14... e4 {[%clk 0:09:06]} 15. f3 {[%clk 0:06:58.4]} 15...
exf3 {[%clk 0:08:35.8]} 16. Bxf3 {[%clk 0:07:00.3]} 16... Bd7 {[%clk 0:08:33.1]}
17. c5 {[%clk 0:06:33.2]} 17... Qf7 {[%clk 0:08:19.9]} 18. cxd6 {[%clk
0:05:51.9]} 18... cxd6 {[%clk 0:08:21.8]} 19. a3 {[%clk 0:05:16.5]} 19... Kh8
{[%clk 0:08:10.1]} 20. Qf2 {[%clk 0:04:33.5]} 20... Be6 {[%clk 0:07:20.3]} 21.
Bc3 {[%clk 0:03:57.3]} 21... Bc4 {[%clk 0:07:15]} 22. Rfe1 {[%clk 0:03:28.6]}
22... Bd5 {[%clk 0:07:16.1]} 23. Bxd5 {[%clk 0:03:05.9]} 23... Qxd5 {[%clk
0:07:18]} 24. Qg2 {[%clk 0:03:07]} 24... Qf7 {[%clk 0:06:57.8]} 25. d5 {[%clk
0:03:00.7]} 25... Ne7 {[%clk 0:05:43.3]} 26. Rcd1 {[%clk 0:02:56.8]} 26... b5
{[%clk 0:05:28.7]} 27. e4 {[%clk 0:02:39.4]} 27... f4 {[%clk 0:05:29]} 28. gxf4
{[%clk 0:02:35.3]} 28... b4 {[%clk 0:05:22.1]} 29. Bd4 {[%clk 0:02:29.1]} 29...
bxa3 {[%clk 0:05:22.2]} 30. bxa3 {[%clk 0:02:31]} 30... Rae8 {[%clk 0:05:16.7]}
31. f5 {[%clk 0:02:25.7]} 31... Ng8 {[%clk 0:05:09.7]} 32. Kh1 {[%clk 0:02:06]}
32... Nf6 {[%clk 0:05:08.4]} 33. Rg1 {[%clk 0:02:06.6]} 33... Re7 {[%clk
0:05:10]} 34. e5 {[%clk 0:01:50.4]} 34... dxe5 {[%clk 0:04:51.4]} 35. Bc5 {[%clk
0:01:51]} 35... Rd7 {[%clk 0:04:52.7]} 36. Bxf8 {[%clk 0:01:50.8]} 36... Qxf8
{[%clk 0:04:54.6]} 37. Qg3 {[%clk 0:01:34.5]} 37... h6 {[%clk 0:04:42.6]} 38.
Qxe5 {[%clk 0:01:31.7]} 38... Qxa3 {[%clk 0:04:43.4]} 39. Rg3 {[%clk 0:01:15.5]}
39... Qa2 {[%clk 0:04:36.8]} 40. d6 {[%clk 0:01:06.1]} 40... a4 {[%clk
0:04:30.8]} 41. Qe6 {[%clk 0:00:48]} 41... Qc2 {[%clk 0:04:26.8]} 42. Rgd3
{[%clk 0:00:28.8]} 42... Kh7 {[%clk 0:03:54.9]} 43. R3d2 {[%clk 0:00:24.7]}
43... Qc6+ {[%clk 0:03:55.4]} 44. Kg1 {[%clk 0:00:25.6]} 44... a3 {[%clk
0:03:56.7]} 45. Qb3 {[%clk 0:00:19.7]} 45... Qc5+ {[%clk 0:03:56.7]} 46. Kh1
{[%clk 0:00:19.5]} 46... Ne4 {[%clk 0:03:54.9]} 47. Re2 {[%clk 0:00:16.8]} 47...
Nc3 {[%clk 0:03:38]} 48. Rc2 {[%clk 0:00:11.8]} 48... Qc6+ {[%clk 0:02:43]} 49.
Kg1 {[%clk 0:00:12.5]} 49... Qc5+ {[%clk 0:02:43.5]} 50. Kh1 {[%clk 0:00:13.3]}
50... Qc6+ {[%clk 0:00:04.5]} 51. Kg1 {[%clk 0:00:13.9]} 51... Qc5+ {[%clk
0:00:04.5]} 52. Kg2 {[%clk 0:00:14.6]} 52... Qxf5 {[%clk 0:00:04.9]} 53. Rxc3
{[%clk 0:00:11]} 53... a2 {[%clk 0:00:05.4]} 54. Ra1 {[%clk 0:00:04.2]} 54...
Qe4+ {[%clk 0:00:05.7]} 55. Rf3 {[%clk 0:00:03.3]} 55... Rxd6 {[%clk 0:00:07.6]}
56. Rxa2 {[%clk 0:00:04]} 56... Rg6+ {[%clk 0:00:08.2]} 57. Kf2 {[%clk
0:00:04.5]} 57... Qh4+ {[%clk 0:00:09.6]} 58. Ke2 {[%clk 0:00:05.6]} 58... Qxh2+
{[%clk 0:00:10.6]} 59. Ke3 {[%clk 0:00:06.4]} 59... Qg1+ {[%clk 0:00:09.9]} 60.
Kd3 {[%clk 0:00:07.1]} 60... Rd6+ {[%clk 0:00:09.5]} 61. Kc4 {[%clk 0:00:08.1]}
61... Qd4+ {[%clk 0:00:10.2]} 62. Kb5 {[%clk 0:00:08]} 62... Rb6+ {[%clk
0:00:12.1]} 63. Ka5 {[%clk 0:00:08.6]} 63... Qc5+ {[%clk 0:00:11.3]} 64. Ka4
{[%clk 0:00:09]} 64... Ra6# {[%clk 0:00:12.7]} 0-1

[Event "GrandPrix_29.05"]
[Site "Chess.com"]
[Date "2020.05.29"]
[Round "1"]
[White "cassoulet"]
[Black "Yurovskykh_Alexander"]
[Result "0-1"]
[WhiteElo "2215"]
[BlackElo "2293"]
[TimeControl "600+2"]
[EndTime "9:25:37 PDT"]
[Termination "Yurovskykh_Alexander won by resignation"]

1. e4 {[%clk 0:10:01.9]} 1... d5 {[%clk 0:10:00.4]} 2. exd5 {[%clk 0:10:02.3]}
2... Qxd5 {[%clk 0:09:53.4]} 3. Nc3 {[%clk 0:10:02.8]} 3... Qd8 {[%clk
0:09:51.8]} 4. Nf3 {[%clk 0:10:02.3]} 4... Bg4 {[%clk 0:09:51.2]} 5. h3 {[%clk
0:10:01.1]} 5... Bxf3 {[%clk 0:09:46.3]} 6. Qxf3 {[%clk 0:10:03]} 6... c6 {[%clk
0:09:47.4]} 7. Bc4 {[%clk 0:09:52.8]} 7... e6 {[%clk 0:09:46.7]} 8. d3 {[%clk
0:09:53.1]} 8... Nd7 {[%clk 0:09:40.4]} 9. Bb3 {[%clk 0:09:52.8]} 9... Ngf6
{[%clk 0:09:35]} 10. Bd2 {[%clk 0:09:44]} 10... Be7 {[%clk 0:09:11.8]} 11. g4
{[%clk 0:09:38.1]} 11... Nc5 {[%clk 0:09:03.5]} 12. g5 {[%clk 0:09:20.2]} 12...
Nd5 {[%clk 0:08:42.4]} 13. Nxd5 {[%clk 0:09:09.1]} 13... Nxb3 {[%clk 0:06:27.8]}
14. axb3 {[%clk 0:08:54.3]} 14... Qxd5 {[%clk 0:06:26.6]} 15. Qxd5 {[%clk
0:08:54.9]} 15... exd5 {[%clk 0:06:20.9]} 16. Be3 {[%clk 0:08:47.1]} 16... Kd7
{[%clk 0:06:06.7]} 17. h4 {[%clk 0:08:41.9]} 17... a6 {[%clk 0:05:50.4]} 18. Kd2
{[%clk 0:08:40.2]} 18... Rhe8 {[%clk 0:05:43.9]} 19. Bd4 {[%clk 0:08:35.3]}
19... Bf8 {[%clk 0:05:41.9]} 20. Rh3 {[%clk 0:07:52.6]} 20... c5 {[%clk
0:05:20.7]} 21. Be3 {[%clk 0:07:47.8]} 21... d4 {[%clk 0:05:21.5]} 22. Bf4
{[%clk 0:07:48.3]} 22... Bd6 {[%clk 0:05:22.9]} 23. Rf3 {[%clk 0:07:44.1]} 23...
Re7 {[%clk 0:05:09.8]} 24. Bxd6 {[%clk 0:07:03.4]} 24... Kxd6 {[%clk 0:05:11.7]}
25. Re1 {[%clk 0:07:03.8]} 25... Rxe1 {[%clk 0:05:09]} 26. Kxe1 {[%clk
0:07:05.7]} 26... Re8+ {[%clk 0:05:09.8]} 27. Kd2 {[%clk 0:06:58]} 27... Re7
{[%clk 0:05:10.8]} 28. Rf5 {[%clk 0:06:38]} 28... b6 {[%clk 0:05:06.1]} 29. c3
{[%clk 0:06:24.6]} 29... dxc3+ {[%clk 0:05:00.6]} 30. bxc3 {[%clk 0:06:26.5]}
30... Ke6 {[%clk 0:05:00.5]} 31. Rf4 {[%clk 0:06:24.6]} 31... f5 {[%clk
0:04:35.8]} 32. h5 {[%clk 0:05:36]} 32... h6 {[%clk 0:04:29.7]} 33. gxh6 {[%clk
0:04:58.4]} 33... gxh6 {[%clk 0:04:31.6]} 34. Ra4 {[%clk 0:04:51.5]} 34... a5
{[%clk 0:04:30]} 35. Ke3 {[%clk 0:04:51.8]} 35... Kf6+ {[%clk 0:04:20.8]} 36.
Kf3 {[%clk 0:04:27.4]} 36... Rg7 {[%clk 0:03:46.9]} 37. Rh4 {[%clk 0:03:38.4]}
37... Rg1 {[%clk 0:03:32.9]} 38. d4 {[%clk 0:03:36.3]} 38... Rc1 {[%clk
0:03:22.8]} 39. dxc5 {[%clk 0:02:55.3]} 39... Rxc3+ {[%clk 0:03:21.8]} 40. Ke2
{[%clk 0:02:56.7]} 40... Rxc5 {[%clk 0:03:05.8]} 41. Rd4 {[%clk 0:02:50.8]}
41... Kg5 {[%clk 0:02:59.4]} 42. b4 {[%clk 0:02:33.6]} 42... axb4 {[%clk
0:02:51.1]} 43. Rxb4 {[%clk 0:02:35.5]} 43... b5 {[%clk 0:02:52.1]} 44. Rb1
{[%clk 0:01:52.9]} 44... Kxh5 {[%clk 0:02:44.3]} 45. Kf3 {[%clk 0:01:52.8]}
45... Kg5 {[%clk 0:02:27.3]} 46. Rb4 {[%clk 0:01:51.9]} 46... h5 {[%clk
0:02:23.7]} 47. Kg3 {[%clk 0:01:50.7]} 47... h4+ {[%clk 0:02:14.7]} 48. Kh3
{[%clk 0:01:44.5]} 48... f4 {[%clk 0:01:56.7]} 49. f3 {[%clk 0:01:38.2]} 49...
Rf5 {[%clk 0:01:51.2]} 50. Rb1 {[%clk 0:01:36.7]} 50... Rd5 {[%clk 0:00:54.1]}
51. Rb4 {[%clk 0:01:35.2]} 51... Rc5 {[%clk 0:00:54.7]} 52. Rb1 {[%clk
0:01:26.9]} 52... Kh5 {[%clk 0:00:39.4]} 53. Rb4 {[%clk 0:01:25.7]} 53... Rf5
{[%clk 0:00:40.5]} 54. Rb1 {[%clk 0:01:23.9]} 54... Rg5 {[%clk 0:00:39.9]} 55.
Kh2 {[%clk 0:01:20.3]} 55... h3 {[%clk 0:00:08.5]} 56. Rb4 {[%clk 0:01:08.5]}
56... Rg2+ {[%clk 0:00:07.3]} 57. Kxh3 {[%clk 0:01:09.6]} 57... Rg3+ {[%clk
0:00:08.6]} 58. Kh2 {[%clk 0:01:11.3]} 58... Rxf3 {[%clk 0:00:09.3]} 59. Rxb5+
{[%clk 0:01:12.6]} 59... Kg4 {[%clk 0:00:10.1]} 60. Rb8 {[%clk 0:00:54.8]} 60...
Ra3 {[%clk 0:00:08.3]} 61. Kg2 {[%clk 0:00:49.2]} 61... Ra2+ {[%clk 0:00:07.5]}
62. Kf1 {[%clk 0:00:49.2]} 62... Kg3 {[%clk 0:00:08.2]} 63. Rb1 {[%clk
0:00:24.2]} 63... f3 {[%clk 0:00:06]} 64. Kg1 {[%clk 0:00:21.5]} 64... Rg2+
{[%clk 0:00:07]} 65. Kf1 {[%clk 0:00:18.7]} 65... Rh2 {[%clk 0:00:07.8]} 66. Kg1
{[%clk 0:00:10.5]} 66... f2+ {[%clk 0:00:09]} 67. Kf1 {[%clk 0:00:11.5]} 67...
Rh1+ {[%clk 0:00:10.9]} 68. Ke2 {[%clk 0:00:13]} 68... Rxb1 {[%clk 0:00:12.2]}
0-1

[Event "GrandPrix_29.05"]
[Site "Chess.com"]
[Date "2020.05.29"]
[Round "1"]
[White "NikolaN98"]
[Black "cukus"]
[Result "1/2-1/2"]
[WhiteElo "1529"]
[BlackElo "2208"]
[TimeControl "600+2"]
[EndTime "9:25:37 PDT"]
[Termination "Game drawn - insufficient material"]

1. e4 {[%clk 0:09:58.2]} 1... c6 {[%clk 0:09:48.9]} 2. d4 {[%clk 0:09:56.6]}
2... d5 {[%clk 0:09:46.2]} 3. exd5 {[%clk 0:09:55.4]} 3... cxd5 {[%clk
0:09:46.4]} 4. Bd3 {[%clk 0:09:52.8]} 4... Nc6 {[%clk 0:09:46]} 5. c3 {[%clk
0:09:49.2]} 5... Nf6 {[%clk 0:09:46.5]} 6. Bf4 {[%clk 0:09:45.3]} 6... g6 {[%clk
0:09:43.8]} 7. Nf3 {[%clk 0:09:28.2]} 7... Bf5 {[%clk 0:09:43.2]} 8. Bxf5 {[%clk
0:08:20.6]} 8... gxf5 {[%clk 0:09:45.1]} 9. Ne5 {[%clk 0:08:21.6]} 9... e6
{[%clk 0:08:15.4]} 10. Nd2 {[%clk 0:08:00.2]} 10... Bd6 {[%clk 0:07:12.4]} 11.
Nd3 {[%clk 0:06:25.3]} 11... Bxf4 {[%clk 0:06:56.1]} 12. Nxf4 {[%clk 0:06:24.1]}
12... Qd6 {[%clk 0:06:56.9]} 13. Nd3 {[%clk 0:06:00.7]} 13... O-O-O {[%clk
0:06:54.3]} 14. Nf3 {[%clk 0:05:14.5]} 14... Rhg8 {[%clk 0:06:24.7]} 15. g3
{[%clk 0:05:12.6]} 15... Ne4 {[%clk 0:06:16.8]} 16. Nfe5 {[%clk 0:05:06.7]}
16... Nxe5 {[%clk 0:06:15.7]} 17. Nxe5 {[%clk 0:05:05.2]} 17... Qc7 {[%clk
0:05:59.5]} 18. f3 {[%clk 0:04:29.8]} 18... Nd6 {[%clk 0:05:40.4]} 19. Qe2
{[%clk 0:04:26.6]} 19... Kb8 {[%clk 0:05:34.8]} 20. O-O-O {[%clk 0:04:08]} 20...
Nc4 {[%clk 0:04:40.4]} 21. Nxc4 {[%clk 0:04:04.6]} 21... dxc4 {[%clk 0:04:37.6]}
22. Rhe1 {[%clk 0:03:34.7]} 22... Rd5 {[%clk 0:04:35.8]} 23. f4 {[%clk
0:03:19.5]} 23... Rg4 {[%clk 0:03:52]} 24. Qf3 {[%clk 0:02:46]} 24... Rg8 {[%clk
0:02:48.1]} 25. Re5 {[%clk 0:02:41.1]} 25... Rgd8 {[%clk 0:02:41.9]} 26. Rde1
{[%clk 0:02:39.6]} 26... Qa5 {[%clk 0:02:33.4]} 27. Kb1 {[%clk 0:02:36.4]} 27...
R8d6 {[%clk 0:01:54.5]} 28. Rxd5 {[%clk 0:02:17.4]} 28... Qxd5 {[%clk
0:01:49.1]} 29. Qxd5 {[%clk 0:01:03.2]} 29... Rxd5 {[%clk 0:01:51]} 30. Kc2
{[%clk 0:01:04.8]} 30... Kc7 {[%clk 0:01:47]} 31. Kd2 {[%clk 0:00:54.1]} 31...
Ra5 {[%clk 0:01:36.7]} 32. a3 {[%clk 0:00:26.2]} 32... Rb5 {[%clk 0:01:37.5]}
33. Kc2 {[%clk 0:00:13]} 33... Kd6 {[%clk 0:01:15.6]} 34. h3 {[%clk 0:00:13.4]}
34... f6 {[%clk 0:01:04.9]} 35. Re2 {[%clk 0:00:08.7]} 35... h5 {[%clk
0:01:01.7]} 36. Kd1 {[%clk 0:00:05.8]} 36... Kd5 {[%clk 0:00:55.7]} 37. Ke1
{[%clk 0:00:06.8]} 37... Rb6 {[%clk 0:00:52.6]} 38. Kf2 {[%clk 0:00:07.7]} 38...
Rc6 {[%clk 0:00:48.6]} 39. Kf3 {[%clk 0:00:08.9]} 39... Rc8 {[%clk 0:00:46]} 40.
g4 {[%clk 0:00:10.1]} 40... fxg4+ {[%clk 0:00:40.5]} 41. hxg4 {[%clk 0:00:12]}
41... hxg4+ {[%clk 0:00:41.2]} 42. Kxg4 {[%clk 0:00:13.9]} 42... Rg8+ {[%clk
0:00:42.7]} 43. Kf3 {[%clk 0:00:14.2]} 43... Rg1 {[%clk 0:00:34.8]} 44. Kf2
{[%clk 0:00:10.7]} 44... Rb1 {[%clk 0:00:34]} 45. Kf3 {[%clk 0:00:11.6]} 45...
b5 {[%clk 0:00:34.2]} 46. Rf2 {[%clk 0:00:10.6]} 46... a5 {[%clk 0:00:32.9]} 47.
f5 {[%clk 0:00:11]} 47... e5 {[%clk 0:00:27.2]} 48. dxe5 {[%clk 0:00:05.8]}
48... Kxe5 {[%clk 0:00:29.1]} 49. Re2+ {[%clk 0:00:03.8]} 49... Kxf5 {[%clk
0:00:29.7]} 50. Ke3 {[%clk 0:00:05.3]} 50... Ke5 {[%clk 0:00:27.9]} 51. Kf3+
{[%clk 0:00:05.2]} 51... Kd5 {[%clk 0:00:29.3]} 52. Rd2+ {[%clk 0:00:06]} 52...
Kc5 {[%clk 0:00:30.6]} 53. Rf2 {[%clk 0:00:05]} 53... b4 {[%clk 0:00:28.7]} 54.
axb4+ {[%clk 0:00:06]} 54... axb4 {[%clk 0:00:30.2]} 55. cxb4+ {[%clk
0:00:05.3]} 55... Kxb4 {[%clk 0:00:31.4]} 56. Ke3 {[%clk 0:00:06.6]} 56... Kb3
{[%clk 0:00:25.8]} 57. Kd4 {[%clk 0:00:06.5]} 57... Rd1+ {[%clk 0:00:21.1]} 58.
Kc5 {[%clk 0:00:07.3]} 58... Rc1 {[%clk 0:00:15.5]} 59. Kd4 {[%clk 0:00:06]}
59... f5 {[%clk 0:00:04.5]} 60. Kc5 {[%clk 0:00:05.9]} 60... Rc2 {[%clk
0:00:03.8]} 61. Rxc2 {[%clk 0:00:04]} 61... Kxc2 {[%clk 0:00:05.7]} 62. Kxc4
{[%clk 0:00:05.5]} 62... Kxb2 {[%clk 0:00:04.7]} 63. Kd4 {[%clk 0:00:06.6]}
63... f4 {[%clk 0:00:05.5]} 64. Ke4 {[%clk 0:00:07.7]} 64... f3 {[%clk 0:00:07]}
65. Kxf3 {[%clk 0:00:08.9]} 1/2-1/2